{"text_format":"3","workbook":"xlsx","n_sheets":2,"sheets":["Začetek","Račun storitve"],"not_rendered":{"images":1,"defined_names":1},"read":"whole","date_system":"1900"}

{"sheet":"Začetek","index":0,"n_rows":8,"n_cols":2,"rows_kept":8}
[null,"O TEJ PREDLOGI"]
[null,"Uporabite to predlogo, da ustvarite servisni račun."]
[null,"Izpolnite številko računa, datum, ime podjetja, naslov, slogan in podrobnosti plačnika."]
[null,"Vnesite podatke v tabele."]
[null,"Skupni znesek se izračuna samodejno."]
[null,"Opomba: "]
[null,"Dodatna navodila so na voljo v stolpcu A na delovnem listu SERVISNI RAČUN. To besedilo je bilo namenoma skrito. Če želite besedilo premakniti, izberite stolpec A, nato izberite še IZBRIŠI. Če želite besedilo razkriti, izberite stolpec A, nato zamenjajte barvo pisave."]
[null,"Če želite izvedeti več o tabelah, v tabeli pritisnite tipko SHIFT in nato F10, izberite možnost TABELA, nato pa še NADOMESTNO BESEDILO."]

{"sheet":"Račun storitve","index":1,"n_rows":44,"n_cols":5,"rows_kept":44,"merged":[[0,1,0,2],[0,3,0,4],[2,1,2,3],[3,1,3,3],[4,1,4,2],[5,1,5,2],[6,1,6,2],[7,1,7,2],[41,1,41,2],[41,3,41,4],[43,1,43,4]]}
[null,"Označba mesta logotipa je v tej celici.",null,"RAČUN"]
[]
[null,"Ime podjetja"]
[null,"Slogan podjetja"]
[null,"Naslov",null,"ŠT. RAČUNA","Št."]
[null,"Mesto, država, poštna številka",null,"DATUM ",{"$f":"TODAY()","v":"2022-05-09"}]
[null,"Telefon faks",null,"ID STRANKE ","ID"]
[null,"E-pošta"]
[null,"ZA","Ime"]
[null,null,"Ime podjetja"]
[null,null,"Naslov"]
[null,null,"Mesto, država, poštna številka"]
[null,null,"Telefon"]
[null,"PRODAJALEC","DELOVNO MESTO","PLAČILNI POGOJI","ROK"]
[{"$nulls":3},"Plačilo po prejemu"]
[]
[null,"KOLIČINA","OPIS","CENA ENOTE","VSOTA VRSTICE"]
[{"$nulls":4},{"$f":"IF(SUM(B18)>0,SUM(B18*'Račun storitve'!$D18),\"\")","v":""}]
[{"$nulls":4},{"$f":"IF(SUM(B19)>0,SUM(B19*'Račun storitve'!$D19),\"\")","v":""}]
[{"$nulls":4},{"$f":"IF(SUM(B20)>0,SUM(B20*'Račun storitve'!$D20),\"\")","v":""}]
[{"$nulls":4},{"$f":"IF(SUM(B21)>0,SUM(B21*'Račun storitve'!$D21),\"\")","v":""}]
[{"$nulls":4},{"$f":"IF(SUM(B22)>0,SUM(B22*'Račun storitve'!$D22),\"\")","v":""}]
[{"$nulls":4},{"$f":"IF(SUM(B23)>0,SUM(B23*'Račun storitve'!$D23),\"\")","v":""}]
[{"$nulls":4},{"$f":"IF(SUM(B24)>0,SUM(B24*'Račun storitve'!$D24),\"\")","v":""}]
[{"$nulls":4},{"$f":"IF(SUM(B25)>0,SUM(B25*'Račun storitve'!$D25),\"\")","v":""}]
[{"$nulls":4},{"$f":"IF(SUM(B26)>0,SUM(B26*'Račun storitve'!$D26),\"\")","v":""}]
[{"$nulls":4},{"$f":"IF(SUM(B27)>0,SUM(B27*'Račun storitve'!$D27),\"\")","v":""}]
[{"$nulls":4},{"$f":"IF(SUM(B28)>0,SUM(B28*'Račun storitve'!$D28),\"\")","v":""}]
[{"$nulls":4},{"$f":"IF(SUM(B29)>0,SUM(B29*'Račun storitve'!$D29),\"\")","v":""}]
[{"$nulls":4},{"$f":"IF(SUM(B30)>0,SUM(B30*'Račun storitve'!$D30),\"\")","v":""}]
[{"$nulls":4},{"$f":"IF(SUM(B31)>0,SUM(B31*'Račun storitve'!$D31),\"\")","v":""}]
[{"$nulls":4},{"$f":"IF(SUM(B32)>0,SUM(B32*'Račun storitve'!$D32),\"\")","v":""}]
[{"$nulls":4},{"$f":"IF(SUM(B33)>0,SUM(B33*'Račun storitve'!$D33),\"\")","v":""}]
[{"$nulls":4},{"$f":"IF(SUM(B34)>0,SUM(B34*'Račun storitve'!$D34),\"\")","v":""}]
[{"$nulls":4},{"$f":"IF(SUM(B35)>0,SUM(B35*'Račun storitve'!$D35),\"\")","v":""}]
[{"$nulls":4},{"$f":"IF(SUM(B36)>0,SUM(B36*'Račun storitve'!$D36),\"\")","v":""}]
[{"$nulls":4},{"$f":"IF(SUM(B37)>0,SUM(B37*'Račun storitve'!$D37),\"\")","v":""}]
[{"$nulls":3},"DELNA VSOTA",{"$f":"IF(SUM(E18:E37)>0,SUM(E18:E37),\"\")","v":""}]
[{"$nulls":3},"PROMETNI DAVEK"]
[{"$nulls":3},"SKUPAJ",{"$f":"IF(SUM(E38)>0,SUM((E38*E39)+E38),\"\")","v":""}]
[]
[null,"Vsi čeki naj bodo izstavljeni na",null,{"$f":"B3","v":"Ime podjetja"}]
[]
[null,"ZAHVALJUJEMO SE VAM ZA SODELOVANJE!"]